[Event "Titled Tuesday Blitz May 9 Early 2023"]
[White "Palacio,Igor Da Paz"]
[Black "Rios Escobar, Adan"]
[WhiteFideId "2121140"]
[BlackFideId "3403645"]
[WhiteElo "2126"]
[BlackElo "2439"]
[Result "1-0"]
[Round "02"]
[TimeControl "180+2"]
[Date "2023.05.09"]
[WhiteClock "0:00:08"]
[BlackClock "0:00:00"]

1. e4 {[%clk 0:02:59]}  c5 {[%clk 0:02:43]} 2. Nc3 {[%clk 0:02:59]}  d6 {[%clk 0:02:42]} 3. g3 {[%clk 0:02:59]}  g6 {[%clk 0:02:42]} 4. Bg2 {[%clk 0:02:59]}  Bg7 {[%clk 0:02:43]} 5. d3 {[%clk 0:02:59]}  e6 {[%clk 0:02:43]} 6. f4 {[%clk 0:02:59]}  Nc6 {[%clk 0:02:42]} 7. Nf3 {[%clk 0:02:59]}  Rb8 {[%clk 0:02:40]} 8. O-O {[%clk 0:02:57]}  b5 {[%clk 0:02:39]} 9. a3 {[%clk 0:02:52]}  a5 {[%clk 0:02:38]} 10. Ne2 {[%clk 0:02:46]}  b4 {[%clk 0:02:36]} 11. axb4 {[%clk 0:02:46]}  axb4 {[%clk 0:02:37]} 12. Rb1 {[%clk 0:02:41]}  h5 {[%clk 0:02:22]} 13. Be3 {[%clk 0:02:39]}  Nf6 {[%clk 0:02:19]} 14. h3 {[%clk 0:02:38]}  O-O {[%clk 0:02:14]} 15. Bf2 {[%clk 0:02:38]}  Nd7 {[%clk 0:02:03]} 16. Kh2 {[%clk 0:02:35]}  Qc7 {[%clk 0:01:57]} 17. Qd2 {[%clk 0:02:31]}  Ba6 {[%clk 0:01:47]} 18. Rfe1 {[%clk 0:02:20]}  Rb6 {[%clk 0:01:32]} 19. Rec1 {[%clk 0:02:17]}  Rfb8 {[%clk 0:01:29]} 20. h4 {[%clk 0:02:10]}  Nf6 {[%clk 0:01:28]} 21. Bh3 {[%clk 0:02:00]}  Qe7 {[%clk 0:01:18]} 22. Kg2 {[%clk 0:01:59]}  Ng4 {[%clk 0:01:15]} 23. Bg1 {[%clk 0:01:57]}  Bb7 {[%clk 0:01:07]} 24. Nh2 {[%clk 0:01:56]}  f5 {[%clk 0:01:03]} 25. Nf3 {[%clk 0:01:56]}  c4 {[%clk 0:00:45]} 26. Bxg4 {[%clk 0:01:43]}  hxg4 {[%clk 0:00:44]} 27. Bxb6 {[%clk 0:01:33]}  gxf3+ {[%clk 0:00:44]} 28. Kxf3 {[%clk 0:01:33]}  e5 {[%clk 0:00:35]} 29. Kg2 {[%clk 0:01:10]}  exf4 {[%clk 0:00:27]} 30. Qxf4 {[%clk 0:01:09]}  Ne5 {[%clk 0:00:26]} 31. Rd1 {[%clk 0:00:45]}  Kh7 {[%clk 0:00:16]} 32. Ba7 {[%clk 0:00:31]}  Rc8 {[%clk 0:00:11]} 33. h5 {[%clk 0:00:13]}  Bh6 {[%clk 0:00:11]} 34. hxg6+ {[%clk 0:00:13]}  Kxg6 {[%clk 0:00:08]} 35. Qxf5+ {[%clk 0:00:13]}  Kg7 {[%clk 0:00:00]} 36. Nf4 {[%clk 0:00:08]} 1-0


[Site "https://www.chess.com"]

[Event "Titled Tuesday Blitz May 9 Early 2023"]
[White "Bortnyk, Olexandr"]
[Black "Hasangatin, Ramil"]
[WhiteFideId "14120828"]
[BlackFideId "4122160"]
[WhiteElo "2734"]
[BlackElo "2279"]
[Result "1-0"]
[Round "03"]
[TimeControl "180+2"]
[Date "2023.05.09"]
[WhiteClock "0:00:57"]
[BlackClock "0:00:01"]

1. d4 {[%clk 0:03:00]}  d6 {[%clk 0:02:59]} 2. e4 {[%clk 0:02:59]}  Nf6 {[%clk 0:02:59]} 3. Nc3 {[%clk 0:02:55]}  e5 {[%clk 0:02:59]} 4. Nf3 {[%clk 0:02:54]}  Nbd7 {[%clk 0:02:59]} 5. Bc4 {[%clk 0:02:54]}  Be7 {[%clk 0:02:59]} 6. O-O {[%clk 0:02:54]}  O-O {[%clk 0:02:59]} 7. a4 {[%clk 0:02:51]}  c6 {[%clk 0:02:58]} 8. Re1 {[%clk 0:02:47]}  exd4 {[%clk 0:02:59]} 9. Nxd4 {[%clk 0:02:46]}  Ne5 {[%clk 0:02:59]} 10. Bb3 {[%clk 0:02:42]}  Re8 {[%clk 0:02:59]} 11. h3 {[%clk 0:02:41]}  Bf8 {[%clk 0:02:58]} 12. Bf4 {[%clk 0:02:36]}  a6 {[%clk 0:02:35]} 13. a5 {[%clk 0:02:33]}  Bd7 {[%clk 0:02:28]} 14. Bh2 {[%clk 0:02:31]}  Ng6 {[%clk 0:02:21]} 15. Qd3 {[%clk 0:02:25]}  Ne5 {[%clk 0:01:57]} 16. Qd1 {[%clk 0:02:06]}  Qc7 {[%clk 0:01:46]} 17. f4 {[%clk 0:02:04]}  Ng6 {[%clk 0:01:45]} 18. Qd3 {[%clk 0:01:57]}  c5 {[%clk 0:01:32]} 19. Bxf7+ {[%clk 0:01:48]}  Kxf7 {[%clk 0:01:26]} 20. Qc4+ {[%clk 0:01:49]}  Ke7 {[%clk 0:01:20]} 21. e5 {[%clk 0:01:48]}  Kd8 {[%clk 0:01:11]} 22. Nf3 {[%clk 0:01:09]}  Be6 {[%clk 0:00:57]} 23. Qd3 {[%clk 0:01:09]}  c4 {[%clk 0:00:48]} 24. Qd2 {[%clk 0:01:10]}  Nd7 {[%clk 0:00:39]} 25. Ng5 {[%clk 0:01:10]}  dxe5 {[%clk 0:00:14]} 26. Nxe6+ {[%clk 0:01:03]}  Rxe6 {[%clk 0:00:13]} 27. f5 {[%clk 0:01:04]}  Rd6 {[%clk 0:00:14]} 28. Qg5+ {[%clk 0:01:04]}  Be7 {[%clk 0:00:13]} 29. Qh5 {[%clk 0:01:03]}  Nf4 {[%clk 0:00:05]} 30. Qxh7 {[%clk 0:01:01]}  Nf6 {[%clk 0:00:01]} 31. Qxg7 {[%clk 0:01:01]}  Rd7 {[%clk 0:00:01]} 32. Qh8+ {[%clk 0:00:58]}  Ne8 {[%clk 0:00:01]} 33. Rxe5 {[%clk 0:00:57]}  Bf6 {[%clk 0:00:01]} 34. Qxe8# {[%clk 0:00:57]} 1-0


[Site "https://www.chess.com"]

[Event "Titled Tuesday Blitz May 9 Early 2023"]
[White "Hakobyan, Aram"]
[Black "Goltsev, Dmitry"]
[WhiteFideId "13306677"]
[BlackFideId "24176710"]
[WhiteElo "2584"]
[BlackElo "2356"]
[Result "1-0"]
[Round "03"]
[TimeControl "180+2"]
[Date "2023.05.09"]
[WhiteClock "0:00:38"]
[BlackClock "0:00:00"]

1. d4 {[%clk 0:03:00]}  Nf6 {[%clk 0:02:59]} 2. c4 {[%clk 0:03:01]}  e6 {[%clk 0:03:00]} 3. Nc3 {[%clk 0:03:01]}  d5 {[%clk 0:03:01]} 4. Nf3 {[%clk 0:03:00]}  dxc4 {[%clk 0:03:01]} 5. e3 {[%clk 0:03:00]}  c5 {[%clk 0:03:01]} 6. Bxc4 {[%clk 0:03:00]}  cxd4 {[%clk 0:03:02]} 7. exd4 {[%clk 0:02:59]}  Nc6 {[%clk 0:03:02]} 8. O-O {[%clk 0:02:59]}  Bd6 {[%clk 0:03:03]} 9. Re1 {[%clk 0:02:56]}  O-O {[%clk 0:03:01]} 10. Bg5 {[%clk 0:02:56]}  h6 {[%clk 0:03:01]} 11. Bh4 {[%clk 0:02:56]}  a6 {[%clk 0:02:59]} 12. a3 {[%clk 0:02:56]}  b5 {[%clk 0:02:59]} 13. Ba2 {[%clk 0:02:56]}  Bb7 {[%clk 0:02:59]} 14. Qd3 {[%clk 0:02:56]}  Ne7 {[%clk 0:02:50]} 15. Bxf6 {[%clk 0:02:48]}  gxf6 {[%clk 0:02:50]} 16. Rad1 {[%clk 0:02:34]}  Ng6 {[%clk 0:02:36]} 17. d5 {[%clk 0:02:32]}  Nf4 {[%clk 0:02:18]} 18. Qd2 {[%clk 0:02:21]}  e5 {[%clk 0:02:08]} 19. g3 {[%clk 0:02:10]}  Nh3+ {[%clk 0:01:56]} 20. Kg2 {[%clk 0:02:10]}  Ng5 {[%clk 0:01:56]} 21. Nh4 {[%clk 0:02:11]}  Qd7 {[%clk 0:01:54]} 22. Bb1 {[%clk 0:02:02]}  Qh3+ {[%clk 0:01:48]} 23. Kh1 {[%clk 0:02:02]}  Bc8 {[%clk 0:01:27]} 24. Ne4 {[%clk 0:02:01]}  Be7 {[%clk 0:01:09]} 25. f3 {[%clk 0:01:48]}  f5 {[%clk 0:01:01]} 26. Nf2 {[%clk 0:01:45]}  Nxf3 {[%clk 0:00:40]} 27. Nxh3 {[%clk 0:01:38]}  Nxd2 {[%clk 0:00:40]} 28. Rxd2 {[%clk 0:01:38]}  Bxh4 {[%clk 0:00:36]} 29. gxh4 {[%clk 0:01:39]}  f6 {[%clk 0:00:36]} 30. d6 {[%clk 0:01:37]}  Kf7 {[%clk 0:00:34]} 31. d7 {[%clk 0:01:28]}  Bb7+ {[%clk 0:00:32]} 32. Kg1 {[%clk 0:01:28]}  Rg8+ {[%clk 0:00:32]} 33. Kf1 {[%clk 0:01:28]}  Ke6 {[%clk 0:00:20]} 34. Nf4+ {[%clk 0:01:24]}  Ke7 {[%clk 0:00:15]} 35. Bxf5 {[%clk 0:01:25]}  Rad8 {[%clk 0:00:13]} 36. Ng6+ {[%clk 0:01:20]}  Kf7 {[%clk 0:00:12]} 37. Rc1 {[%clk 0:01:00]}  Bf3 {[%clk 0:00:11]} 38. Rd6 {[%clk 0:00:42]}  Rg7 {[%clk 0:00:10]} 39. Rc8 {[%clk 0:00:39]}  Rgg8 {[%clk 0:00:00]} 40. Be6+ {[%clk 0:00:38]} 1-0


[Site "https://www.chess.com"]

[Event "Titled Tuesday Blitz May 9 Early 2023"]
[White "Sarana, Alexey"]
[Black "Shuvalova, Polina"]
[WhiteFideId "24133795"]
[BlackFideId "24171760"]
[WhiteElo "2714"]
[BlackElo "2281"]
[Result "1-0"]
[Round "03"]
[TimeControl "180+2"]
[Date "2023.05.09"]
[WhiteClock "0:00:44"]
[BlackClock "0:00:00"]

1. d4 {[%clk 0:03:00]}  Nf6 {[%clk 0:02:59]} 2. c4 {[%clk 0:03:01]}  e6 {[%clk 0:02:59]} 3. Nc3 {[%clk 0:03:02]}  d5 {[%clk 0:02:57]} 4. cxd5 {[%clk 0:03:02]}  Nxd5 {[%clk 0:02:58]} 5. e4 {[%clk 0:02:57]}  Nxc3 {[%clk 0:02:58]} 6. bxc3 {[%clk 0:02:58]}  c5 {[%clk 0:02:59]} 7. Rb1 {[%clk 0:02:56]}  Be7 {[%clk 0:02:58]} 8. Nf3 {[%clk 0:02:56]}  O-O {[%clk 0:02:57]} 9. h4 {[%clk 0:02:56]}  b6 {[%clk 0:02:52]} 10. h5 {[%clk 0:02:57]}  h6 {[%clk 0:02:52]} 11. Rh3 {[%clk 0:02:56]}  Kh8 {[%clk 0:02:45]} 12. Rg3 {[%clk 0:02:53]}  cxd4 {[%clk 0:02:38]} 13. cxd4 {[%clk 0:02:53]}  Bb7 {[%clk 0:02:34]} 14. Bd3 {[%clk 0:02:52]}  Nc6 {[%clk 0:02:26]} 15. Bb2 {[%clk 0:02:48]}  Nb4 {[%clk 0:02:20]} 16. d5 {[%clk 0:02:48]}  Bf6 {[%clk 0:01:55]} 17. e5 {[%clk 0:02:22]}  Bh4 {[%clk 0:01:44]} 18. Rg4 {[%clk 0:02:17]}  Nxd3+ {[%clk 0:01:17]} 19. Qxd3 {[%clk 0:02:16]}  Bg5 {[%clk 0:01:17]} 20. d6 {[%clk 0:02:09]}  Rc8 {[%clk 0:00:58]} 21. Nxg5 {[%clk 0:01:42]}  hxg5 {[%clk 0:00:58]} 22. Qd2 {[%clk 0:01:36]}  Rc5 {[%clk 0:00:36]} 23. Rxg5 {[%clk 0:01:33]}  Qd7 {[%clk 0:00:26]} 24. h6 {[%clk 0:01:20]}  g6 {[%clk 0:00:22]} 25. Qf4 {[%clk 0:01:20]}  Qd8 {[%clk 0:00:16]} 26. Ba3 {[%clk 0:01:08]}  Ra5 {[%clk 0:00:13]} 27. Rb3 {[%clk 0:01:03]}  Bd5 {[%clk 0:00:11]} 28. Rc3 {[%clk 0:01:03]}  Kh7 {[%clk 0:00:02]} 29. Rc7 {[%clk 0:00:44]}  Rxa3 {[%clk 0:00:02]} 30. Rxf7+ {[%clk 0:00:44]}  Rxf7 {[%clk 0:00:00]} 31. Qxf7+ {[%clk 0:00:44]} 1-0


[Site "https://www.chess.com"]

[Event "Titled Tuesday Blitz May 9 Early 2023"]
[White "Schmakel, Sam"]
[Black "Maghsoodloo, Parham"]
[WhiteFideId "2039311"]
[BlackFideId "12539929"]
[WhiteElo "2356"]
[BlackElo "2655"]
[Result "0-1"]
[Round "03"]
[TimeControl "180+2"]
[Date "2023.05.09"]
[WhiteClock "0:00:01"]
[BlackClock "0:00:26"]

1. d4 {[%clk 0:03:00]}  Nf6 {[%clk 0:02:02]} 2. c4 {[%clk 0:02:52]}  e6 {[%clk 0:02:02]} 3. Nf3 {[%clk 0:02:52]}  Bb4+ {[%clk 0:02:01]} 4. Bd2 {[%clk 0:02:52]}  a5 {[%clk 0:02:02]} 5. a3 {[%clk 0:02:51]}  Be7 {[%clk 0:02:02]} 6. Nc3 {[%clk 0:02:50]}  d5 {[%clk 0:02:02]} 7. g3 {[%clk 0:02:43]}  O-O {[%clk 0:02:02]} 8. Bg2 {[%clk 0:02:43]}  Nbd7 {[%clk 0:02:02]} 9. c5 {[%clk 0:02:31]}  c6 {[%clk 0:01:53]} 10. b4 {[%clk 0:02:30]}  b6 {[%clk 0:01:53]} 11. O-O {[%clk 0:02:29]}  Ba6 {[%clk 0:01:53]} 12. Re1 {[%clk 0:02:27]}  Bc4 {[%clk 0:01:50]} 13. Bf4 {[%clk 0:02:20]}  axb4 {[%clk 0:01:30]} 14. axb4 {[%clk 0:02:21]}  Rxa1 {[%clk 0:01:29]} 15. Qxa1 {[%clk 0:02:22]}  Qa8 {[%clk 0:01:28]} 16. Nd2 {[%clk 0:02:08]}  b5 {[%clk 0:01:22]} 17. Nxc4 {[%clk 0:01:45]}  bxc4 {[%clk 0:01:22]} 18. b5 {[%clk 0:01:20]}  cxb5 {[%clk 0:01:20]} 19. Qxa8 {[%clk 0:01:14]}  Rxa8 {[%clk 0:01:20]} 20. Nxb5 {[%clk 0:01:15]}  h6 {[%clk 0:01:12]} 21. Rb1 {[%clk 0:00:58]}  g5 {[%clk 0:01:10]} 22. Bd6 {[%clk 0:00:56]}  Bxd6 {[%clk 0:01:09]} 23. Nxd6 {[%clk 0:00:56]}  Rb8 {[%clk 0:01:07]} 24. Ra1 {[%clk 0:00:39]}  Kf8 {[%clk 0:01:02]} 25. c6 {[%clk 0:00:25]}  Ke7 {[%clk 0:00:59]} 26. c7 {[%clk 0:00:19]}  Kxd6 {[%clk 0:00:59]} 27. cxb8=Q+ {[%clk 0:00:19]}  Nxb8 {[%clk 0:00:59]} 28. e3 {[%clk 0:00:20]}  Nc6 {[%clk 0:00:57]} 29. Kf1 {[%clk 0:00:18]}  Nd7 {[%clk 0:00:57]} 30. Ke2 {[%clk 0:00:18]}  f5 {[%clk 0:00:57]} 31. f4 {[%clk 0:00:16]}  g4 {[%clk 0:00:56]} 32. h3 {[%clk 0:00:15]}  h5 {[%clk 0:00:56]} 33. hxg4 {[%clk 0:00:15]}  hxg4 {[%clk 0:00:55]} 34. Kd2 {[%clk 0:00:15]}  Kc7 {[%clk 0:00:50]} 35. Rh1 {[%clk 0:00:14]}  Na7 {[%clk 0:00:50]} 36. Rh6 {[%clk 0:00:13]}  Kd6 {[%clk 0:00:50]} 37. Bf1 {[%clk 0:00:13]}  Nb5 {[%clk 0:00:49]} 38. Be2 {[%clk 0:00:13]}  Nb6 {[%clk 0:00:49]} 39. Rh8 {[%clk 0:00:11]}  Na4 {[%clk 0:00:43]} 40. Ra8 {[%clk 0:00:09]}  Nac3 {[%clk 0:00:42]} 41. Rb8 {[%clk 0:00:02]}  Ne4+ {[%clk 0:00:42]} 42. Kc2 {[%clk 0:00:02]}  Nbc3 {[%clk 0:00:31]} 43. Bd1 {[%clk 0:00:01]}  Kc7 {[%clk 0:00:26]} 44. Rd8 {[%clk 0:00:01]}  Kxd8 {[%clk 0:00:26]} 0-1


[Site "https://www.chess.com"]

[Event "Titled Tuesday Blitz May 9 Early 2023"]
[White "Shimanov, Aleksandr"]
[Black "Leiva, Gianmarco"]
[WhiteFideId "4198603"]
[BlackFideId "3804399"]
[WhiteElo "2631"]
[BlackElo "2365"]
[Result "1-0"]
[Round "03"]
[TimeControl "180+2"]
[Date "2023.05.09"]
[WhiteClock "0:00:04"]
[BlackClock "0:00:00"]

1. c4 {[%clk 0:02:30]}  e6 {[%clk 0:02:56]} 2. g3 {[%clk 0:02:29]}  d5 {[%clk 0:02:50]} 3. Bg2 {[%clk 0:02:29]}  Nf6 {[%clk 0:02:50]} 4. Nf3 {[%clk 0:02:28]}  Be7 {[%clk 0:02:39]} 5. d4 {[%clk 0:02:25]}  O-O {[%clk 0:02:35]} 6. Nc3 {[%clk 0:02:25]}  Nbd7 {[%clk 0:02:32]} 7. O-O {[%clk 0:02:15]}  dxc4 {[%clk 0:02:31]} 8. a4 {[%clk 0:02:10]}  a5 {[%clk 0:02:17]} 9. e4 {[%clk 0:02:00]}  Nb6 {[%clk 0:02:04]} 10. Qe2 {[%clk 0:01:59]}  c5 {[%clk 0:01:49]} 11. Rd1 {[%clk 0:01:55]}  cxd4 {[%clk 0:01:47]} 12. Nxd4 {[%clk 0:01:55]}  Bd7 {[%clk 0:01:47]} 13. Bg5 {[%clk 0:01:50]}  Nxe4 {[%clk 0:01:07]} 14. Nxe4 {[%clk 0:01:21]}  Bxg5 {[%clk 0:01:06]} 15. Nc5 {[%clk 0:01:21]}  Rc8 {[%clk 0:00:38]} 16. Ndxe6 {[%clk 0:01:06]}  Qe7 {[%clk 0:00:22]} 17. Nxd7 {[%clk 0:00:38]}  Nxd7 {[%clk 0:00:22]} 18. Nd4 {[%clk 0:00:39]}  Qxe2 {[%clk 0:00:15]} 19. Nxe2 {[%clk 0:00:40]}  Nc5 {[%clk 0:00:16]} 20. Rd5 {[%clk 0:00:36]}  Bf6 {[%clk 0:00:15]} 21. Nc3 {[%clk 0:00:36]}  Rfd8 {[%clk 0:00:13]} 22. h4 {[%clk 0:00:29]}  b6 {[%clk 0:00:09]} 23. Ra2 {[%clk 0:00:12]}  g6 {[%clk 0:00:08]} 24. Rxd8+ {[%clk 0:00:12]}  Rxd8 {[%clk 0:00:08]} 25. Nd5 {[%clk 0:00:13]}  Rd6 {[%clk 0:00:09]} 26. Ne3 {[%clk 0:00:08]}  c3 {[%clk 0:00:03]} 27. bxc3 {[%clk 0:00:09]}  Bxc3 {[%clk 0:00:03]} 28. Nc4 {[%clk 0:00:09]}  Rd1+ {[%clk 0:00:03]} 29. Kh2 {[%clk 0:00:10]}  Bd4 {[%clk 0:00:02]} 30. Bc6 {[%clk 0:00:08]}  Ne6 {[%clk 0:00:02]} 31. Kg2 {[%clk 0:00:07]}  Rc1 {[%clk 0:00:02]} 32. Bb5 {[%clk 0:00:06]}  Bc5 {[%clk 0:00:02]} 33. Ne5 {[%clk 0:00:06]}  Nd4 {[%clk 0:00:02]} 34. Bc4 {[%clk 0:00:06]}  Bd6 {[%clk 0:00:01]} 35. Nxf7 {[%clk 0:00:06]}  Bc7 {[%clk 0:00:01]} 36. Bd5 {[%clk 0:00:03]}  Rc5 {[%clk 0:00:01]} 37. Re2 {[%clk 0:00:01]}  Rxd5 {[%clk 0:00:01]} 38. Nh6+ {[%clk 0:00:02]}  Kg7 {[%clk 0:00:02]} 39. Ng4 {[%clk 0:00:02]}  Rd7 {[%clk 0:00:02]} 40. Rd2 {[%clk 0:00:02]}  Rd8 {[%clk 0:00:01]} 41. Rd3 {[%clk 0:00:02]}  Nc6 {[%clk 0:00:02]} 42. Rc3 {[%clk 0:00:02]}  Rd6 {[%clk 0:00:02]} 43. Ne3 {[%clk 0:00:03]}  Bd8 {[%clk 0:00:02]} 44. Rc4 {[%clk 0:00:03]}  Bf6 {[%clk 0:00:02]} 45. Ng4 {[%clk 0:00:03]}  Ne5 {[%clk 0:00:01]} 46. Rc7+ {[%clk 0:00:03]}  Rd7 {[%clk 0:00:01]} 47. Nxf6 {[%clk 0:00:01]}  Rxc7 {[%clk 0:00:01]} 48. Ne8+ {[%clk 0:00:02]}  Kf7 {[%clk 0:00:01]} 49. Nxc7 {[%clk 0:00:02]}  Nd7 {[%clk 0:00:01]} 50. Kf3 {[%clk 0:00:02]}  Ke7 {[%clk 0:00:01]} 51. Ke4 {[%clk 0:00:02]}  Kd6 {[%clk 0:00:02]} 52. Nb5+ {[%clk 0:00:02]}  Kc5 {[%clk 0:00:02]} 53. Kd3 {[%clk 0:00:02]}  Kb4 {[%clk 0:00:02]} 54. Nd6 {[%clk 0:00:01]}  Nc5+ {[%clk 0:00:01]} 55. Kd4 {[%clk 0:00:01]}  Nxa4 {[%clk 0:00:02]} 56. g4 {[%clk 0:00:02]}  Nc5 {[%clk 0:00:02]} 57. Nc4 {[%clk 0:00:02]}  b5 {[%clk 0:00:02]} 58. Ne5 {[%clk 0:00:02]}  a4 {[%clk 0:00:01]} 59. Nc6+ {[%clk 0:00:02]}  Kb3 {[%clk 0:00:01]} 60. Kxc5 {[%clk 0:00:03]}  a3 {[%clk 0:00:00]} 61. Nb4 {[%clk 0:00:04]} 1-0


[Site "https://www.chess.com"]

[Event "Titled Tuesday Blitz May 9 Early 2023"]
[White "Demchenko, Anton"]
[Black "Perez Gormaz, Matias"]
[WhiteFideId "4160258"]
[BlackFideId "3406342"]
[WhiteElo "2545"]
[BlackElo "2362"]
[Result "1-0"]
[Round "03"]
[TimeControl "180+2"]
[Date "2023.05.09"]
[WhiteClock "0:00:06"]
[BlackClock "0:00:01"]

1. e4 {[%clk 0:03:00]}  e5 {[%clk 0:03:00]} 2. Nf3 {[%clk 0:03:00]}  Nc6 {[%clk 0:03:01]} 3. Bc4 {[%clk 0:03:01]}  Bc5 {[%clk 0:03:00]} 4. d3 {[%clk 0:03:01]}  d6 {[%clk 0:02:59]} 5. c3 {[%clk 0:02:57]}  a5 {[%clk 0:02:58]} 6. d4 {[%clk 0:02:49]}  exd4 {[%clk 0:02:48]} 7. cxd4 {[%clk 0:02:49]}  Bb6 {[%clk 0:02:46]} 8. Nc3 {[%clk 0:01:45]}  Bg4 {[%clk 0:02:44]} 9. Be3 {[%clk 0:01:44]}  Nf6 {[%clk 0:02:40]} 10. Be2 {[%clk 0:01:37]}  O-O {[%clk 0:02:35]} 11. h3 {[%clk 0:01:37]}  Bh5 {[%clk 0:02:34]} 12. O-O {[%clk 0:01:25]}  Re8 {[%clk 0:02:33]} 13. d5 {[%clk 0:01:25]}  Bxe3 {[%clk 0:01:56]} 14. dxc6 {[%clk 0:01:26]}  Ba7 {[%clk 0:01:54]} 15. cxb7 {[%clk 0:01:25]}  Rb8 {[%clk 0:01:55]} 16. Bb5 {[%clk 0:01:17]}  Re7 {[%clk 0:01:55]} 17. Bc6 {[%clk 0:01:17]}  Nd7 {[%clk 0:01:52]} 18. Nd5 {[%clk 0:01:05]}  Rxe4 {[%clk 0:01:32]} 19. Nxc7 {[%clk 0:00:46]}  Rc4 {[%clk 0:01:16]} 20. Qxd6 {[%clk 0:00:31]}  Bxf3 {[%clk 0:01:07]} 21. gxf3 {[%clk 0:00:27]}  Rxc6 {[%clk 0:00:14]} 22. Qxc6 {[%clk 0:00:26]}  Ne5 {[%clk 0:00:15]} 23. Qe4 {[%clk 0:00:15]}  Qxc7 {[%clk 0:00:14]} 24. Rac1 {[%clk 0:00:15]}  Qd8 {[%clk 0:00:01]} 25. Qxe5 {[%clk 0:00:16]}  Rxb7 {[%clk 0:00:02]} 26. Rfd1 {[%clk 0:00:16]}  Qf8 {[%clk 0:00:01]} 27. Qf5 {[%clk 0:00:08]}  g6 {[%clk 0:00:01]} 28. Qc8 {[%clk 0:00:07]}  Qxc8 {[%clk 0:00:01]} 29. Rxc8+ {[%clk 0:00:06]}  Kg7 {[%clk 0:00:02]} 30. Rc2 {[%clk 0:00:06]}  a4 {[%clk 0:00:02]} 31. Rd3 {[%clk 0:00:06]}  Bc5 {[%clk 0:00:01]} 32. Rxc5 {[%clk 0:00:06]} 1-0


[Site "https://www.chess.com"]

[Event "Titled Tuesday Blitz May 9 Early 2023"]
[White "Lavrik, Dmitry"]
[Black "Lenderman, Aleksandr"]
[WhiteFideId "24113190"]
[BlackFideId "2021285"]
[WhiteElo "2345"]
[BlackElo "2607"]
[Result "0-1"]
[Round "03"]
[TimeControl "180+2"]
[Date "2023.05.09"]
[WhiteClock "0:00:12"]
[BlackClock "0:01:02"]

1. c4 {[%clk 0:03:00]}  e6 {[%clk 0:03:00]} 2. g3 {[%clk 0:03:00]}  d5 {[%clk 0:03:00]} 3. Bg2 {[%clk 0:03:01]}  c6 {[%clk 0:03:00]} 4. b3 {[%clk 0:02:54]}  dxc4 {[%clk 0:03:00]} 5. bxc4 {[%clk 0:02:54]}  Qd4 {[%clk 0:03:00]} 6. Nc3 {[%clk 0:02:53]}  Qxc4 {[%clk 0:03:00]} 7. Nf3 {[%clk 0:02:43]}  Nf6 {[%clk 0:02:59]} 8. O-O {[%clk 0:02:40]}  Nbd7 {[%clk 0:02:59]} 9. Bb2 {[%clk 0:02:31]}  Qa6 {[%clk 0:02:59]} 10. e4 {[%clk 0:02:29]}  e5 {[%clk 0:02:49]} 11. d4 {[%clk 0:02:27]}  exd4 {[%clk 0:02:49]} 12. Nxd4 {[%clk 0:02:28]}  Ba3 {[%clk 0:02:45]} 13. Bxa3 {[%clk 0:01:31]}  Qxa3 {[%clk 0:02:46]} 14. Ncb5 {[%clk 0:01:31]}  cxb5 {[%clk 0:02:40]} 15. Nxb5 {[%clk 0:01:32]}  Qa5 {[%clk 0:02:39]} 16. Nd6+ {[%clk 0:01:32]}  Kf8 {[%clk 0:02:34]} 17. Rc1 {[%clk 0:01:32]}  Nb6 {[%clk 0:02:22]} 18. e5 {[%clk 0:00:56]}  Ne8 {[%clk 0:02:20]} 19. Qd4 {[%clk 0:00:23]}  Be6 {[%clk 0:02:08]} 20. Nxb7 {[%clk 0:00:23]}  Qxa2 {[%clk 0:02:00]} 21. Nd8 {[%clk 0:00:19]}  Bd5 {[%clk 0:01:45]} 22. Ra1 {[%clk 0:00:16]}  Qc4 {[%clk 0:01:32]} 23. Qxc4 {[%clk 0:00:16]}  Bxc4 {[%clk 0:01:33]} 24. Bxa8 {[%clk 0:00:16]}  Bxf1 {[%clk 0:01:32]} 25. Kxf1 {[%clk 0:00:14]}  Nxa8 {[%clk 0:01:31]} 26. e6 {[%clk 0:00:14]}  fxe6 {[%clk 0:01:25]} 27. Nxe6+ {[%clk 0:00:15]}  Ke7 {[%clk 0:01:22]} 28. Nf4 {[%clk 0:00:16]}  Nac7 {[%clk 0:01:19]} 29. Rxa7 {[%clk 0:00:16]}  Kd6 {[%clk 0:01:18]} 30. h4 {[%clk 0:00:17]}  Nf6 {[%clk 0:01:18]} 31. Ra2 {[%clk 0:00:17]}  Rb8 {[%clk 0:01:15]} 32. Rd2+ {[%clk 0:00:17]}  Kc6 {[%clk 0:01:15]} 33. Kg2 {[%clk 0:00:18]}  Nfd5 {[%clk 0:01:09]} 34. Nxd5 {[%clk 0:00:17]}  Nxd5 {[%clk 0:01:08]} 35. Rc2+ {[%clk 0:00:18]}  Kd6 {[%clk 0:01:08]} 36. Rd2 {[%clk 0:00:19]}  Ke6 {[%clk 0:01:08]} 37. Re2+ {[%clk 0:00:19]}  Kf7 {[%clk 0:01:08]} 38. Rd2 {[%clk 0:00:20]}  Nf6 {[%clk 0:01:09]} 39. Re2 {[%clk 0:00:20]}  Rb3 {[%clk 0:01:08]} 40. Rc2 {[%clk 0:00:20]}  h6 {[%clk 0:01:07]} 41. Re2 {[%clk 0:00:20]}  Kg6 {[%clk 0:01:07]} 42. Rc2 {[%clk 0:00:20]}  Ng4 {[%clk 0:01:06]} 43. Re2 {[%clk 0:00:21]}  Rb5 {[%clk 0:01:03]} 44. Rc2 {[%clk 0:00:20]}  Ne5 {[%clk 0:01:03]} 45. Re2 {[%clk 0:00:21]}  Kf5 {[%clk 0:01:03]} 46. Rc2 {[%clk 0:00:20]}  Nd3 {[%clk 0:01:02]} 47. Re2 {[%clk 0:00:20]}  Rb2 {[%clk 0:01:01]} 48. Rxb2 {[%clk 0:00:15]}  Nxb2 {[%clk 0:01:02]} 49. Kf3 {[%clk 0:00:15]}  Nd3 {[%clk 0:01:02]} 50. g4+ {[%clk 0:00:16]}  Ke5 {[%clk 0:01:01]} 51. Ke3 {[%clk 0:00:12]}  Nf4 {[%clk 0:01:02]} 0-1


[Site "https://www.chess.com"]

[Event "Titled Tuesday Blitz May 9 Early 2023"]
[White "Volkov, Maksim"]
[Black "Gurel, Ediz"]
[WhiteFideId "54123070"]
[BlackFideId "44507356"]
[WhiteElo "2297"]
[BlackElo "2352"]
[Result "0-1"]
[Round "03"]
[TimeControl "180+2"]
[Date "2023.05.09"]
[WhiteClock "0:00:01"]
[BlackClock "0:00:51"]

1. d4 {[%clk 0:03:00]}  d6 {[%clk 0:02:55]} 2. Nf3 {[%clk 0:02:59]}  Nf6 {[%clk 0:02:55]} 3. c4 {[%clk 0:02:59]}  g6 {[%clk 0:02:53]} 4. Nc3 {[%clk 0:02:59]}  Bg7 {[%clk 0:02:54]} 5. g3 {[%clk 0:02:59]}  O-O {[%clk 0:02:55]} 6. Bg2 {[%clk 0:03:00]}  Nc6 {[%clk 0:02:54]} 7. O-O {[%clk 0:03:00]}  e5 {[%clk 0:02:55]} 8. dxe5 {[%clk 0:03:00]}  dxe5 {[%clk 0:02:48]} 9. Bg5 {[%clk 0:02:59]}  Be6 {[%clk 0:02:43]} 10. Qc1 {[%clk 0:02:46]}  Qe8 {[%clk 0:02:29]} 11. b3 {[%clk 0:02:32]}  Nd7 {[%clk 0:02:17]} 12. Bh6 {[%clk 0:02:18]}  f6 {[%clk 0:02:17]} 13. Rd1 {[%clk 0:02:14]}  Qf7 {[%clk 0:02:05]} 14. Bxg7 {[%clk 0:02:08]}  Kxg7 {[%clk 0:02:06]} 15. Nd2 {[%clk 0:01:48]}  f5 {[%clk 0:01:50]} 16. Qb2 {[%clk 0:01:31]}  h6 {[%clk 0:01:42]} 17. Nb5 {[%clk 0:01:13]}  Rfc8 {[%clk 0:01:33]} 18. Nf1 {[%clk 0:00:56]}  a6 {[%clk 0:01:29]} 19. Nc3 {[%clk 0:00:55]}  Nf6 {[%clk 0:01:22]} 20. Nd5 {[%clk 0:00:51]}  Rd8 {[%clk 0:01:20]} 21. Nfe3 {[%clk 0:00:48]}  Nd4 {[%clk 0:01:07]} 22. Nxf6 {[%clk 0:00:45]}  Qxf6 {[%clk 0:01:08]} 23. Bxb7 {[%clk 0:00:39]}  e4 {[%clk 0:01:07]} 24. Kf1 {[%clk 0:00:25]}  f4 {[%clk 0:00:55]} 25. Nd5 {[%clk 0:00:14]}  Bh3+ {[%clk 0:00:55]} 26. Ke1 {[%clk 0:00:14]}  Nf3+ {[%clk 0:00:53]} 27. exf3 {[%clk 0:00:10]}  Qxb2 {[%clk 0:00:54]} 28. Nxf4 {[%clk 0:00:08]}  Qc3+ {[%clk 0:00:52]} 29. Ke2 {[%clk 0:00:01]}  exf3+ {[%clk 0:00:51]} 0-1


[Site "https://www.chess.com"]